Cogmind - Beta 15 @@@ ROGUE MODE // 2025.06.13 @ 14:59:09 Player: Chair Result: Escaped! Performance ------------- Evolutions (9) 4500 Regions Visited (11) 2200 Robots Destroyed (17) 85 Value Destroyed (538) 538 Prototype IDs (5) 100 Alien Tech Used (0) 0 Bonus (20181) 20181 TOTAL SCORE: 27604 Bonus ------- Pacifist 834 Entered DSFs 500 Win 3000 Win Speed 15847 Cogmind --------- Core Integrity 468/1600 Matter 70/300 Energy 99/100 System Corruption 5% Temperature Cool (0) Movement Core (50) Location To Epsilon Eridani Parts ------- > --- POWER (2) -------- (None) > --- PROPULSION (10) -- (None) > --- UTILITY (11) ----- Improved Signal Interpreter > --- WEAPON (2) ------- (None) > --- INVENTORY (5) ---- Improved Antigrav System Improved Antigrav System Improved Antigrav System Advanced Trap Scanner Compact HERF Cannon Peak State ------------ > --- POWER ------------ Improved Fusion Compressor > --- PROPULSION ------- Xenon Bombardment Thruster Field Propulsion Array Impulse Thruster Array Impulse Thruster Array > --- UTILITY ---------- Advanced Trap Scanner Enhanced Optical Array Improved Signal Interpreter Improved Signal Interpreter Improved Weapon Shielding Improved Weapon Shielding Layered Light Armor Plating Hacking Suite > --- WEAPON ----------- Compact HERF Cannon > --- INVENTORY -------- Improved Antigrav System Improved Antigrav System Improved Antigrav System Improved Antigrav System Improved Antigrav System [Rating: 99] Favorites ----------- Power Heavy Deuterium Engine Engine Heavy Deuterium Engine Power Core Improved Fusion Compressor Reactor Light Antimatter Reactor Propulsion Improved Airjet Hover Unit Improved Airjet Flight Unit VTOL Module Utility Improved Signal Interpreter Device Advanced Sensor Array Processor Improved Signal Interpreter Hackware Hacking Suite Protection Powered Armor Weapon Chainsword Energy Cannon Compact HERF Cannon Ballistic Gun Assault Rifle Launcher Precision Grenade Launcher Impact Weapon Mace Slashing Weapon Chainsword Build | -11 -10 -9 -8 -7 -6 -5 -4 -3 -2 -2 -1 ------- Run | Yrd Mat Mat Mat Fac Fac Fac Fac Res Res DSF Acc Slots Evolved 18 | . . 2 2 2 2 2 2 2 2 . 2 Power 1 | . . . . . . . . 1 . . . Propulsion 8 | . . 2 . 1 1 . 1 1 1 . 1 Utility 9 | . . . 2 1 1 2 1 . 1 . 1 Weapon . | . . . . . . . . . . . . Parts Attached 61 | 2 5 3 2 14 5 . 1 10 8 1 10 Power 9 | . . 1 . 2 1 . . 3 1 . 1 Engine 5 | . . 1 . 2 1 . . 1 . . . Core 1 | . . . . . . . . . 1 . . Reactor 3 | . . . . . . . . 2 . . 1 Propulsion 22 | . 2 2 . 4 . . . 6 1 . 7 Treads . | . . . . . . . . . . . . Leg . | . . . . . . . . . . . . Wheel . | . . . . . . . . . . . . Hover 6 | . . . . 4 . . . 2 . . . Flight 16 | . 2 2 . . . . . 4 1 . 7 Utility 22 | . 2 . 2 6 4 . 1 1 5 1 . Device 8 | . 1 . 1 1 3 . 1 . 1 . . Storage . | . . . . . . . . . . . . Processor 7 | . 1 . 1 3 1 . . . 1 . . Hackware 1 | . . . . . . . . . 1 . . Protection 6 | . . . . 2 . . . 1 2 1 . Artifact . | . . . . . . . . . . . . Weapon 8 | 2 1 . . 2 . . . . 1 . 2 Energy Gun . | . . . . . . . . . . . . Energy Cannon 1 | . . . . . . . . . 1 . . Ballistic Gun 2 | 2 . . . . . . . . . . . Ballistic Cannon . | . . . . . . . . . . . . Launcher 3 | . . . . 1 . . . . . . 2 Special Weapon . | . . . . . . . . . . . . Impact Weapon 1 | . 1 . . . . . . . . . . Slashing Weapon 1 | . . . . 1 . . . . . . . Piercing Weapon . | . . . . . . . . . . . . Special Melee Weapon . | . . . . . . . . . . . . Unidentified Prototypes 5 | . . . . 2 1 . . 1 . . 1 Parts Lost 42 | . . 1 1 6 . . 3 14 . 2 15 Power 8 | . . . 1 1 . . . 4 . . 2 Propulsion 20 | . . 1 . 4 . . 1 4 . 2 8 Utility 11 | . . . . 1 . . 1 5 . . 4 Weapon 3 | . . . . . . . 1 1 . . 1 Highest Loss Streak 13 | . . 1 1 6 . . 2 10 . 2 13 To Critical Strikes . | . . . . . . . . . . . . Average Backups 3 | . 1 4 4 4 5 5 5 1 3 5 4 Power . | . . . . . 1 1 1 . . . . Propulsion 1 | . . 1 . . . . . . 3 5 3 Utility 1 | . . . . 1 2 2 3 . . . . Weapon 1 | . 1 3 3 2 2 1 1 . . . . Tool/Special . | . . . . . . . . . . . . Unused Backups 10 | . . . . 4 . 1 . . . . 5 Power . | . . . . . . . . . . . . Propulsion 5 | . . . . . . . . . . . 5 Utility 1 | . . . . 1 . . . . . . . Weapon 4 | . . . . 3 . 1 . . . . . Tool/Special . | . . . . . . . . . . . . Average Slot Usage (%) 55 | . 31 72 72 68 72 58 43 40 38 56 45 Engine 3 | . . 2 9 5 6 5 5 3 . . . Hover 8 | . . . . 12 20 17 11 7 . . . Flight 10 | . 8 26 27 12 . . . 7 14 16 18 Device 7 | . . 11 9 6 15 11 12 4 . 4 1 Processor 12 | . 1 11 9 19 17 11 10 9 9 13 11 Protection 3 | . . . . 2 6 5 1 3 6 8 2 Ballistic Gun 1 | . 19 11 9 . . . . . . . . Slashing Weapon 2 | . . . . 6 6 5 1 . . . . Peak Build Rating 99 | 2 10 14 18 40 54 43 43 70 95 99 92 Average Rating 47 | 1 3 11 15 31 48 43 33 55 73 93 70 On Entrance 33 | . 2 10 12 16 40 48 43 30 44 95 63 Naked Turns . | . . . . . . . . . . . . Heaviest Build 40 | 4 5 8 8 23 33 26 26 40 21 25 33 Greatest Support 57 | 3 8 16 12 27 27 27 27 57 37 37 57 Greatest Overweight (x) 2 | 1 1 . . 2 1 . . 1 . . . Average Overweight (x) . | . . . . . . . . . . . . Largest Inventory Capacity 5 | 5 5 5 5 5 5 5 5 5 5 5 5 Average Capacity 5 | 5 5 5 5 5 5 5 5 5 5 5 5 Most Carried 5 | . 5 5 5 5 5 5 5 5 5 5 5 Average Carried 3 | . 1 4 4 4 4 4 5 1 3 5 4 Final Capacity 5 | 5 5 5 5 5 5 5 5 5 5 5 5 Final Carried 5 | . 5 3 5 5 5 5 5 1 5 5 5 Class Distribution -------------------- 39% | Mutant 30% | Sprinter 14% | Scout 9% | Assassin Dominant Class ---------------- Mutant | -10/Materials Sprinter | -9/Materials Sprinter | -8/Materials Mutant | -7/Factory Assassin | -6/Factory Scout | -5/Factory Scout | -4/Factory Mutant | -3/Research Mutant | -2/Research Mutant | -2/DSF Sprinter | -1/Access Resources | -11 -10 -9 -8 -7 -6 -5 -4 -3 -2 -2 -1 ----------- Run | Yrd Mat Mat Mat Fac Fac Fac Fac Res Res DSF Acc Matter Collected 580 | 50 . . 219 109 7 . 8 31 94 8 54 Remotely . | . . . . . . . . . . . . Salvage Created 358 | . . . . 131 36 61 . 62 . . 68 Parts 23 | . . . . 8 3 3 . 4 . . 5 Haulers Intercepted 2 | . . . . 2 . . . . . . . Recyclers Shooed . | . . . . . . . . . . . . Parts Field Recycled . | . . . . . . . . . . . . Retrieved Matter . | . . . . . . . . . . . . Parts Self-Destructed . | . . . . . . . . . . . . Prevented . | . . . . . . . . . . . . Kills | -11 -10 -9 -8 -7 -6 -5 -4 -3 -2 -2 -1 ------- Run | Yrd Mat Mat Mat Fac Fac Fac Fac Res Res DSF Acc Combat Hostiles Destroyed 13 | . . . . . 4 1 . 3 . . 5 Melee 1 | . . . . . . 1 . . . . . AOE 12 | . . . . . 4 . . 3 . . 5 Classes Destroyed 4 | . . . . 2 1 1 . . . . . Worker 2 | . . . . 1 . . . . . . 1 Hauler 2 | . . . . 2 . . . . . . . Swarmer 12 | . . . . . 4 . . 3 . . 5 Grunt 1 | . . . . . . 1 . . . . . Best Kill Streak 6 | . . . . 1 4 1 . 3 . . 6 Combat Bots Only 5 | . . . . . 4 1 . 3 . . 5 Max Kills in Single Turn 3 | . . . . 1 2 1 . 2 . . 3 Gunslinging . | . . . . . . . . . . . . Exploded 3 | . . . . . 2 . . 2 . . 3 Melee 1 | . . . . . . 1 . . . . . Uniques/NPCs Destroyed . | . . . . . . . . . . . . Combat | -11 -10 -9 -8 -7 -6 -5 -4 -3 -2 -2 -1 -------- Run | Yrd Mat Mat Mat Fac Fac Fac Fac Res Res DSF Acc Hostile Shots Fired 462 | . . 22 4 95 13 15 26 107 . 11 169 Missed 211 | . . 11 1 43 7 6 15 49 . 3 76 Hits 251 | . . 11 3 52 6 9 11 58 . 8 93 Melee 4 | . . . . . . . . . . 4 . Projectile 247 | . . 11 3 52 6 9 11 58 . 4 93 AOE 2 | . . . . . . . . . . 2 . Critical Strikes 13 | . . 1 . 1 . 1 1 3 . 2 4 Damage Taken 5981 | . . 150 53 710 108 210 410 1879 . 510 1951 Core 2066 | . . 65 . 241 16 19 116 352 . 125 1132 Absorbed by Shields . | . . . . . . . . . . . . Redirected to Shielding 107 | . . . . . . . . . . 69 38 Core Remaining (%) 84 | 100 100 83 100 65 98 98 89 72 . 91 29 Volleys Fired 10 | . 1 . . . 2 . . 2 . . 5 Largest 1 | . 1 . . . 1 . . 1 . . 1 Hottest 49 | . 20 . . . 36 . . 36 . . 49 Shots Fired 10 | . 1 . . . 2 . . 2 . . 5 Gun 1 | . 1 . . . . . . . . . . Cannon . | . . . . . . . . . . . . Launcher 9 | . . . . . 2 . . 2 . . 5 Special . | . . . . . . . . . . . . Kinetic 1 | . 1 . . . . . . . . . . Thermal . | . . . . . . . . . . . . Explosive 9 | . . . . . 2 . . 2 . . 5 Electromagnetic . | . . . . . . . . . . . . Robot Hit Streak 2 | . . . . . 2 . . . . . . Robot Miss Streak 2 | . 1 . . . . . . . . . 2 Penetration Max . | . . . . . . . . . . . . Secondary Targets . | . . . . . . . . . . . . Shots Hit Robots 10 | . . 1 . 7 2 . . . . . . Core Hits 26 | . . . . 3 5 1 1 6 . . 10 Critical Kills . | . . . . . . . . . . . . Critical Parts Destroyed . | . . . . . . . . . . . . Critical Strikes 1 | . . . . 1 . . . . . . . Sever 1 | . . . . 1 . . . . . . . Melee Attacks 23 | . 1 2 3 8 9 . . . . . . Impact 6 | . 1 2 3 . . . . . . . . Slashing 17 | . . . . 8 9 . . . . . . Piercing . | . . . . . . . . . . . . Sneak Attacks 4 | . . . . 4 . . . . . . . Combat Hostiles . | . . . . . . . . . . . . Follow-up Attacks . | . . . . . . . . . . . . Damage Inflicted 1708 | . . 42 . 459 334 52 55 256 . . 510 Guns . | . . . . . . . . . . . . Cannons . | . . . . . . . . . . . . Explosions 1100 | . . . . . 334 . . 256 . . 510 Melee 501 | . . 42 . 459 . . . . . . . Ramming 107 | . . . . . . 52 55 . . . . Kinetic . | . . . . . . . . . . . . Thermal . | . . . . . . . . . . . . Explosive 1100 | . . . . . 334 . . 256 . . 510 Electromagnetic . | . . . . . . . . . . . . Impact 42 | . . 42 . . . . . . . . . Slashing 459 | . . . . 459 . . . . . . . Piercing . | . . . . . . . . . . . . Highest Corruption 5 | . . . . 2 . . . 3 . . 5 Average Corruption 2 | . . . . 1 . . . 3 . . 1 Corruption Purged . | . . . . . . . . . . . . Corruption Blocked . | . . . . . . . . . . . . Effects 5 | . . . . . . . . 2 . . 3 Message Errors 1 | . . . . . . . . . . . 1 Matter Fused 1 | . . . . . . . . . . . 1 Heat Flow Errors 2 | . . . . . . . . 1 . . 1 Data Loss (major) 1 | . . . . . . . . 1 . . . Overload Shots . | . . . . . . . . . . . . Overflow Damage 60 | . . . . 51 9 . . . . . . Projectiles . | . . . . . . . . . . . . Explosions 9 | . . . . . 9 . . . . . . Melee 51 | . . . . 51 . . . . . . . Knockbacks 1 | . . 1 . . . . . . . . . Impact 1 | . . 1 . . . . . . . . . Kinetic . | . . . . . . . . . . . . Secondary . | . . . . . . . . . . . . Self-Inflicted Damage 148 | . . . . . . 26 25 . . . 97 Shots 3 | . . . . . . . . . . . 3 Rammed 10 | . . . . . . 1 8 1 . . . Targets Rammed 10 | . . . . . . 1 8 1 . . . Kicked . | . . . . . . . . . . . . Crushed . | . . . . . . . . . . . . Highest Temperature 332 | . . 7 . 3 . 11 . 313 . . 332 Average Temperature 87 | . . 7 . 3 . 11 . 135 . . 71 Received Heat Transfer 854 | . . 57 27 177 . 90 . 467 . . 36 Siege Activations . | . . . . . . . . . . . . Martial Activations . | . . . . . . . . . . . . Shielding Activations . | . . . . . . . . . . . . Robots Disrupted . | . . . . . . . . . . . . Combat Hostiles . | . . . . . . . . . . . . Robots Corrupted . | . . . . . . . . . . . . Combat Hostiles . | . . . . . . . . . . . . Parts Fried . | . . . . . . . . . . . . Impact Corruptions . | . . . . . . . . . . . . Robots Melted . | . . . . . . . . . . . . Combat Hostiles . | . . . . . . . . . . . . Parts Melted . | . . . . . . . . . . . . Heat Transferred . | . . . . . . . . . . . . Parts Sabotaged . | . . . . . . . . . . . . Parts Stolen . | . . . . . . . . . . . . Parts Stripped . | . . . . . . . . . . . . Power Chain Reactions 3 | . . . . 1 . . . 2 . . . Alert | -11 -10 -9 -8 -7 -6 -5 -4 -3 -2 -2 -1 ------- Run | Yrd Mat Mat Mat Fac Fac Fac Fac Res Res DSF Acc Maximum Alert Level 2 | . . . . 1 . . . 1 . . 2 Low Security (%) 86 | 100 100 100 100 87 100 100 100 93 100 100 22 Level 1 13 | . . . . 12 . . . 6 . . 74 Level 2 . | . . . . . . . . . . . 3 Level 3 . | . . . . . . . . . . . . Level 4 . | . . . . . . . . . . . . Level 5 . | . . . . . . . . . . . . High Security . | . . . . . . . . . . . . Max Security . | . . . . . . . . . . . . Peak Influence 443 | . 15 45 27 225 162 45 45 208 99 74 443 Initial 105 | . . 5 10 4 105 35 21 2 99 59 32 Average 92 | . 2 11 19 70 101 34 20 85 91 64 265 Influence Increases 1612 | . 15 45 32 353 128 20 45 388 . 15 571 Destroy 0b10 Robot/C 260 | . . . . . 80 20 . 60 . . 100 Destroy 0b10 Robot/NC 20 | . . . . 15 . . . . . . 5 Destroy Leader 34 | . . . . 4 10 . . 10 . . 10 Successful Hack 102 | . . . . 14 19 . . . . . 69 Select Force Hacks 100 | . . . . 50 . . . 50 . . . Disable Machine 45 | . 15 . 15 . . . . . . . 15 Destroy Structure 151 | . . . 2 . 4 . . 28 . . 117 Partial Spotted 75 | . . . 15 30 . . . . . . 30 Lose Combat Pursuer 825 | . . 45 . 240 15 . 45 240 . 15 225 Influence Decreases 1249 | . . 35 45 150 270 48 85 215 99 40 262 Entered New Map 329 | . . 10 15 8 110 38 24 3 79 20 22 Time Decay 505 | . . 15 20 98 120 10 40 92 20 . 90 Lost Part 375 | . . 10 10 44 . . 21 120 . 20 150 Lost Ally 40 | . . . . . 40 . . . . . . Squads Dispatched 18 | . 1 1 . 7 1 . . 3 . 2 3 Investigation 8 | . 1 . . 3 1 . . 2 . . 1 Extermination 2 | . . . . . . . . 1 . . 1 Reinforcement 8 | . . 1 . 4 . . . . . 2 1 Assault . | . . . . . . . . . . . . Garrison . | . . . . . . . . . . . . Intercept . | . . . . . . . . . . . . Searches Triggered . | . . . . . . . . . . . . Construction Impeded . | . . . . . . . . . . . . Haulers Reinforced 1 | . . . . 1 . . . . . . . Active Scanning Responses . | . . . . . . . . . . . . Cargo Convoy Interrupts . | . . . . . . . . . . . . Stealth | -11 -10 -9 -8 -7 -6 -5 -4 -3 -2 -2 -1 --------- Run | Yrd Mat Mat Mat Fac Fac Fac Fac Res Res DSF Acc Distress Signals 11 | . . 1 1 2 1 . 1 3 . . 2 Communications Jammed . | . . . . . . . . . . . . Distress Signals . | . . . . . . . . . . . . Times Spotted 151 | . 1 7 6 27 7 11 14 42 . 5 31 Peak Tracking Total 16 | . 1 7 7 11 4 10 8 15 . 4 16 Tactical Retreats 20 | . . 1 . 5 1 . 3 5 . 1 4 Traps | -11 -10 -9 -8 -7 -6 -5 -4 -3 -2 -2 -1 ------- Run | Yrd Mat Mat Mat Fac Fac Fac Fac Res Res DSF Acc Traps Triggered 6 | . . . . . . . . 2 . 4 . Indirectly . | . . . . . . . . . . . . Trap Hack Attempts . | . . . . . . . . . . . . Triggered . | . . . . . . . . . . . . Disarmed . | . . . . . . . . . . . . Reprogrammed . | . . . . . . . . . . . . Reused . | . . . . . . . . . . . . Traps Extracted . | . . . . . . . . . . . . Installed . | . . . . . . . . . . . . Triggered . | . . . . . . . . . . . . Machines | -11 -10 -9 -8 -7 -6 -5 -4 -3 -2 -2 -1 ---------- Run | Yrd Mat Mat Mat Fac Fac Fac Fac Res Res DSF Acc Machines Disabled 3 | . 1 . 1 . . . . . . . 1 Max in Single Turn 1 | . 1 . 1 . . . . . . . 1 Garrison Access 1 | . . . . . . 1 . . . . . Machines Repaired . | . . . . . . . . . . . . Machines Dismantled . | . . . . . . . . . . . . Machines Sabotaged . | . . . . . . . . . . . . Overloaded Fab Kills 8 | . . . . 5 . . . 3 . . . Hacking | -11 -10 -9 -8 -7 -6 -5 -4 -3 -2 -2 -1 --------- Run | Yrd Mat Mat Mat Fac Fac Fac Fac Res Res DSF Acc Machines Accessed 21 | . 2 . . 5 3 2 . 3 2 . 4 Terminals 17 | . 2 . . 4 2 1 . 2 2 . 4 Fabricators 3 | . . . . 1 1 . . 1 . . . Repair Stations . | . . . . . . . . . . . . Recycling Units . | . . . . . . . . . . . . Scanalyzers . | . . . . . . . . . . . . Garrison Access 1 | . . . . . . 1 . . . . . Total Hacks 48 | . 5 . . 14 8 5 . 5 4 . 7 Successful 11 | . . . . 2 3 1 . 1 1 . 3 Failed 37 | . 5 . . 12 5 4 . 4 3 . 4 Catastrophic 13 | . 3 . . 4 3 1 . 1 . . 1 Database Lockouts . | . . . . . . . . . . . . Manual 21 | . 5 . . 7 4 . . 3 . . 2 Terminals 40 | . 5 . . 12 5 3 . 4 4 . 7 Fabricators 6 | . . . . 2 3 . . 1 . . . Repair Stations . | . . . . . . . . . . . . Recycling Units . | . . . . . . . . . . . . Scanalyzers . | . . . . . . . . . . . . Garrison Access 2 | . . . . . . 2 . . . . . Terminal Hacks 6 | . . . . 1 1 . . . 1 . 3 Record 1 | . . . . . . . . . . . 1 Open DSF 1 | . . . . . . . . . 1 . . Branch Access Points 1 | . . . . . . . . . . . 1 Emergency Access Points 1 | . . . . 1 . . . . . . . Machine Index 1 | . . . . . . . . . . . 1 Terminal Index 1 | . . . . . 1 . . . . . . Fabricator Hacks 2 | . . . . . 2 . . . . . . Network Status 1 | . . . . . 1 . . . . . . Build 1 | . . . . . 1 . . . . . . Repair Station Hacks . | . . . . . . . . . . . . Recycling Unit Hacks . | . . . . . . . . . . . . Scanalyzer . | . . . . . . . . . . . . Garrison Access Hacks 1 | . . . . . . 1 . . . . . Seal Access 1 | . . . . . . 1 . . . . . Unauthorized Hacks 2 | . . . . 1 . . . 1 . . . Terminals . | . . . . . . . . . . . . Fabricators 2 | . . . . 1 . . . 1 . . . Overload 2 | . . . . 1 . . . 1 . . . Repair Stations . | . . . . . . . . . . . . Recycling Units . | . . . . . . . . . . . . Scanalyzers . | . . . . . . . . . . . . Garrison Access . | . . . . . . . . . . . . Data Cores Recovered . | . . . . . . . . . . . . Used . | . . . . . . . . . . . . Hacking Detections 18 | . 2 . . 4 3 2 . 2 2 . 3 Full Trace Events 6 | . 1 . . 2 1 . . 1 . . 1 Feedback Events 1 | . . . . . . . . . . . 1 Corruption 1 | . . . . . . . . . . . 1 Feedback Blocked . | . . . . . . . . . . . . Robot Schematics Acquired . | . . . . . . . . . . . . Robots Built 4 | . . . . . 4 . . . . . . Authchips . | . . . . . . . . . . . . Time 81 | . . . . . 81 . . . . . . Total Robot Build Rating 4 | . . . . . 4 . . . . . . Part Schematics Acquired . | . . . . . . . . . . . . Parts Built . | . . . . . . . . . . . . Authchips . | . . . . . . . . . . . . Time . | . . . . . . . . . . . . Total Part Build Rating . | . . . . . . . . . . . . Parts Repaired . | . . . . . . . . . . . . Time . | . . . . . . . . . . . . Parts Recycled . | . . . . . . . . . . . . Recycled Matter . | . . . . . . . . . . . . Retrieved Matter . | . . . . . . . . . . . . Retrieved Components . | . . . . . . . . . . . . Parts Scanalyzed . | . . . . . . . . . . . . Part Schematics Acquired . | . . . . . . . . . . . . Parts Damaged . | . . . . . . . . . . . . Bothacking | -11 -10 -9 -8 -7 -6 -5 -4 -3 -2 -2 -1 ------------ Run | Yrd Mat Mat Mat Fac Fac Fac Fac Res Res DSF Acc Used RIF Installer . | . . . . . . . . . . . . Robots Hacked . | . . . . . . . . . . . . Non-combat . | . . . . . . . . . . . . Combat . | . . . . . . . . . . . . Robot Hacks Applied . | . . . . . . . . . . . . Relay Couplers Released . | . . . . . . . . . . . . Fabnet Peak Effective % . | . . . . . . . . . . . . Robots Rewired . | . . . . . . . . . . . . Allies Hacked . | . . . . . . . . . . . . Hacks Repelled . | . . . . . . . . . . . . Allies | -11 -10 -9 -8 -7 -6 -5 -4 -3 -2 -2 -1 -------- Run | Yrd Mat Mat Mat Fac Fac Fac Fac Res Res DSF Acc Total Allies 4 | . . . . . 4 . . . . . . Largest Group 4 | . . . . . 4 . . . . . . Highest-Rated Group 24 | . . . . . 24 . . . . . . Highest-Rated Ally 6 | . . . . . 6 . . . . . . Total Orders . | . . . . . . . . . . . . Ally Attacks . | . . . . . . . . . . . . Total Damage . | . . . . . . . . . . . . Kills . | . . . . . . . . . . . . Allies Corrupted . | . . . . . . . . . . . . Allies Melted . | . . . . . . . . . . . . Intel | -11 -10 -9 -8 -7 -6 -5 -4 -3 -2 -2 -1 ------- Run | Yrd Mat Mat Mat Fac Fac Fac Fac Res Res DSF Acc Active Infowar (turns) 1212 | . 3 40 44 149 246 32 100 270 48 106 174 Optics 835 | . . . . . 124 32 95 256 48 106 174 Sensors 699 | . 3 40 44 149 246 32 100 85 . . . Traps 2 | . . . . . . . . . 2 . . Seismic 246 | . . . . . 117 32 97 . . . . ECM 155 | . . . . . . . 48 107 . . . Robot Analysis Total . | . . . . . . . . . . . . Derelict Logs Recovered . | . . . . . . . . . . . . Drone Launches . | . . . . . . . . . . . . Drone Recoveries . | . . . . . . . . . . . . Exploration | -11 -10 -9 -8 -7 -6 -5 -4 -3 -2 -2 -1 ------------- Run | Yrd Mat Mat Mat Fac Fac Fac Fac Res Res DSF Acc Turns Passed 1438 | 20 73 40 44 263 256 32 100 270 48 106 186 Spaces Moved 2796 | 21 89 100 106 596 361 70 201 591 84 87 490 Core 99 | 21 67 . . 1 . . . 2 . . 8 Treads . | . . . . . . . . . . . . Legs . | . . . . . . . . . . . . Wheels . | . . . . . . . . . . . . Hover 1148 | . . . . 248 361 70 201 268 . . . Flight 1549 | . 22 100 106 347 . . . 321 84 87 482 Fastest Speed 20 | 50 32 26 29 29 42 42 42 33 35 35 20 Average Speed 39 | 85 60 30 29 35 60 42 44 39 37 36 26 Slowest Speed 150 | 100 100 32 29 150 102 42 46 100 40 37 50 Overloaded Moves . | . . . . . . . . . . . . Propulsion Burnouts . | . . . . . . . . . . . . Robots Hopped 28 | . . 1 . . . . . 6 . 2 19 Potential Cave-ins 5 | . . . . . 5 . . . . . . Cave-ins Triggered . | . . . . . . . . . . . . Exploration Rate (%) 21 | 3 25 16 20 28 13 4 12 24 3 86 20 Regions Visited 11 Branch Regions . Pre-discovered Areas . | . . . . . . . . . . . . Known Exits Taken 8 | . 1 1 1 1 1 1 . 1 1 . . Unknown Exits Taken 2 | 1 . . . . . . 1 . . . . Scrap Searched . | . . . . . . . . . . . . Spaces Dug 26 | . . . 2 . 9 . . 15 . . . Terrain Destroyed 76 | . . . 2 . 9 . . 15 . . 50 Melee 11 | . . . 2 . 9 . . . . . . Projectile . | . . . . . . . . . . . . AOE 65 | . . . . . . . . 15 . . 50 Terrain Rammed . | . . . . . . . . . . . . Walls Destroyed . | . . . . . . . . . . . . Machines Disabled . | . . . . . . . . . . . . Actions | -11 -10 -9 -8 -7 -6 -5 -4 -3 -2 -2 -1 --------- Run | Yrd Mat Mat Mat Fac Fac Fac Fac Res Res DSF Acc Total 3029 | 22 103 103 113 633 384 73 210 616 96 158 518 Wait 37 | . . . . . 2 . . 10 . . 25 Move 2731 | 20 88 97 105 595 360 69 200 579 83 82 453 Hop 25 | . . 1 . . . . . 5 . 2 17 Pick Up 22 | . 6 . 1 6 . 1 . 3 5 . . Fast Attach 51 | 2 4 1 2 11 4 . 1 8 7 1 10 Attach 15 | . 1 2 . 3 1 . . 7 1 . . Detach 12 | . 1 . 2 3 3 . . . . . 3 Swap 1 | . . . . . 1 . . . . . . Drop 20 | . 1 . . 7 2 2 1 1 . 1 5 Fire 10 | . 1 . . . 2 . . 2 . . 5 Melee 23 | . 1 2 3 8 9 . . . . . . Ram 10 | . . . . . . 1 8 1 . . . Kick . | . . . . . . . . . . . . Crush . | . . . . . . . . . . . . Escape Stasis 72 | . . . . . . . . . . 72 . Rewire . | . . . . . . . . . . . . Trap . | . . . . . . . . . . . . Miscellaneous . | . . . . . . . . . . . . Route ------- -11/Scrapyard -10/Materials -9/Materials -8/Materials -7/Factory -6/Factory -5/Factory (discovered 2 exits: *Fac / *Upp) -4/Factory -3/Research (discovered 2 exits: *Res / *Arm) -2/Research -2/DSF -1/Access (discovered 2 exits: *Sur / Com) To Epsilon Eridani History --------- Turn | Location | Event 5 | -11/Scrapyard | Discovered new exit (range 16) 21 | -11/Scrapyard | Entered Materials 67 | -10/Materials | Discovered new exit (range 16) 93 | -10/Materials | Identified exit to Materials 94 | -10/Materials | Entered another Materials area 94 | -9/Materials | Evolved 2 slots: Propulsion x2 127 | -9/Materials | Discovered new exit (range 8) 128 | -9/Materials | Identified exit to Materials 134 | -9/Materials | Entered another Materials area 134 | -8/Materials | Evolved 2 slots: Utility x2 176 | -8/Materials | Discovered new exit (range 10) 178 | -8/Materials | Identified exit to Factory 178 | -8/Materials | Entered Factory 178 | -7/Factory | Evolved 2 slots: Propulsion x1, Utility x1 360 | -7/Factory | Found Powered Armor 371 | -7/Factory | Found Powered Armor 377 | -7/Factory | Lost 6 parts (1p4n1u) 434 | -7/Factory | Discovered new exit (range 16) 440 | -7/Factory | Identified exit to Factory 441 | -7/Factory | Entered another Factory area 441 | -6/Factory | Evolved 2 slots: Propulsion x1, Utility x1 543 | -6/Factory | Fabricated K-01 Serf? 686 | -6/Factory | Discovered new exit (range 6) 696 | -6/Factory | Identified exit to Factory 697 | -6/Factory | Entered another Factory area 697 | -5/Factory | Evolved 2 slots: Utility x2 704 | -5/Factory | Discovered new exit (range 15) 709 | -5/Factory | Identified exit to Upper Caves 725 | -5/Factory | Discovered new exit (range 11) 729 | -5/Factory | Identified exit to Factory 729 | -5/Factory | Entered another Factory area 729 | -4/Factory | Evolved 2 slots: Propulsion x1, Utility x1 816 | -4/Factory | Discovered new exit (range 16) 829 | -4/Factory | Entered Research 829 | -3/Research | Evolved 2 slots: Power x1, Propulsion x1 984 | -3/Research | Lost 10 parts (2p3n5u) 1066 | -3/Research | Discovered new exit (range 12) 1069 | -3/Research | Identified exit to Armory 1081 | -3/Research | Discovered new exit (range 9) 1083 | -3/Research | Spotted B-86 Titan 1085 | -3/Research | Identified exit to Research 1099 | -3/Research | Entered another Research area 1099 | -2/Research | Evolved 2 slots: Propulsion x1, Utility x1 1147 | -2/Research | Identified exit to DSF 1147 | -2/Research | Entered DSF 1182 | -2/DSF | Additional patrols routed to DSF 1206 | -2/DSF | Discovered new exit (range 22) 1253 | -2/DSF | Identified exit to Access 1253 | -2/DSF | Entered Access 1253 | -1/Access | Evolved 2 slots: Propulsion x1, Utility x1 1331 | -1/Access | Identified exit to Command 1391 | -1/Access | Spotted B-99 Colossus 1408 | -1/Access | Spotted B-99 Colossus 1409 | -1/Access | Spotted B-99 Colossus 1424 | -1/Access | Core integrity fell below 50% 1437 | -1/Access | Discovered new exit (range 4) 1438 | -1/Access | Identified exit to Surface 1439 | *** | Escaped! Last Messages --------------- 01413_ Slug penetrates Sealed Heavy Doors. 01413_ Penetrated by Slug. 01416_ B-99 Colossus activates siege mode. 01416_ Electron Diverter destroyed. 01416_ Slug penetrates Sealed Heavy Doors. 01423_ Penetrated by Slug. 01423_ Slug penetrates Main Access Shell. 01423_ Penetrated by Slug. 01424_ Imp. Signal Interpreter destroyed. 01427_ Enh. Optical Array destroyed. 01433_ Penetrated by Slug. 01433_ Slug penetrates Main Access Shell. 01433_ Slug penetrates Sealed Heavy Doors. 01435_ QOB>R4JGDKGII%TMV8/FL##JN>AQQAAE 01437_ Hacking Suite destroyed. 01437_ Critical hit (Blast). 01437_ EXIT=FOUND 01437_ Slug penetrates Sealed Heavy Doors. 01438_ EXIT=IDENTIFIED: SURFACE [Achievement: Speedrunner] Map ----- +----------------------------------------------------+ | ?????????????????????????????????????????????????? | | ?????????????????????????????????????????????????? | | ?????????????????????????????????????????????????? | | ?????????????????????????????????????????????????? | | ?????????????????????????????????????????????????? | | ?????????????????????????????????????????????????? | | ?????????????????????????????????????????????????? | | ?????????????????????????????????????????????????? | | ?????????????????????????????????????????????????? | | ?????????????????????????????????????????????????? | | ?????????????????????????????????????????????????? | | ?????????????????????????????????????????????????? | | ?????????????????????????????????????????????????? | | ?????????????????????????????????????????????????? | | ?????????????????????????????????????????????????? | | ?????????????????????????????????????????????????? | | ?????????????????????????????????????????????????? | | ?????????????????????????????????????????????????? | | ?????????????????????????????????????????????????? | | ?????????????????????????????????????????????????? | | ????????????????????""""?????????????????????????? | | ????????????????????# ?????????????????????????? | | ????????????????????# ?????????????????????????? | | ????????????????????# """"""????????????????????? | | ????????????????????# " "????????????????????? | | ????????????????????# " @" "????????????????????? | | ????????????????????# " "" "????????????????????? | | ????????????????????#% " "????????????????????? | | ????????????????????# % """"" #?????????????????? | | ????????????????????# p % #?????????????????? | | ????????????????????#"" """""""#?????????????????? | | ??????????????????????" "????????????????????????? | | ??????????????????????" "????????????????????????? | | ????????????????????#"" """""""#?????????????????? | | ????????????????????# % #?????????????????? | | ????????????????????# #?????????????????? | | ????????????????????# #?????????????????? | | ????????????????????# #?????????????????? | | ????????????????????# #?????????????????? | | ????????????????????# #?????????????????? | | ????????????????????# #?????????????????? | | #######+##############"" ####?????????????????? | | #????????????????????? | | % % #????????????????????? | | "??????????? | | ###### ?????? | | #######+#### #?????????????????? | | ????? ?# #?????????????????? | | ???= # ############+####+#?????????????????? | | ?#[ # #???????????????????????????????????? | +----------------------------------------------------+ Best States ------------- Heat Dissipation 52 Energy Generation 37 Energy Capacity 485 Matter Stores 300 Matter Capacity 300 Sight Range 22 Robot Scan Range 16 Terrain Scan Density 210 ECM Strength 1 Armor Coverage 550 Weapon Shielding 66 Evasion (%) 67 Targeting Accuracy 8 Melee Accuracy 5 Offensive Hacking 10 Item Schematics ----------------- None Robot Schematics ------------------ None Fabricated ------------ K-01 Serf | x4 | -6/Factory | Preloaded Repaired ---------- Nothing Alien Tech Used ----------------- None Achievements -------------- Speedrunner Challenges ------------ None Game ------ Seed IntegratedMobileScrapsphere Manual? 0 Play Time 00:33:54 Cumulative 246.0 hours Start 2025.06.13 @ 14:25:49 End 2025.06.13 @ 14:59:09 Sessions 1 Manual Loads 0 Difficulty Rogue Special Mode None Game No. 175 Rogue 175 Adventurer 0 Explorer 0 Win Type 0 Total 14 Types 14/0/0/0/0/0/0/0/0/0 Lore% 72 Gallery% 70 Achievement% 64 Wizard Run 0 Options --------- Layout 0 ASCII 0 Keyboard 1 Movement Numpad Keybinds 0 Fullscreen 2 Font 36/Smallcaps Map View 76x50 Zoom Use 0% Tactical HUD 1 Map Filters NONE Filters NONE Steam 1 RUN: 55b8d27f-51ea-4e46-84d7-0978836f1597